[Event "Slovakia Open 2022"]
[Site "Bratislava"]
[Date "2022.10.02"]
[Round "9.34"]
[White "Ruderfer, Mark B"]
[Black "Nedoba, Jakub"]
[Result "1-0"]
[ECO "B13"]
[WhiteElo "2236"]
[BlackElo "1160"]
[Annotator "TA"]
[PlyCount "46"]
[EventDate "2022.09.30"]
[EventCountry "SVK"]
[SourceTitle "playchess.com"]
[Source "ChessBase"]
[SourceQuality "1"]
[TimeControl "2700+10"]

{[%evp 9,46,12,104,0,19,0,7,7,75,79,74,81,226,215,229,234,259,271,268,263,264,262,250,157,1739,354,1220,1010,1010,992,29986,29969,6678,6119,29990,29991,29995,1152,29998]} 1. e4 {[%emt 0:00:06]} c6 {[%emt 0:00:10]} 2. d4 {[%emt 0:00:03]} d5 {[%emt 0:00:02]} 3. exd5 {[%emt 0:00:23]} cxd5 {[%emt 0:00:02]} 4. c4 {[%emt 0:00:01]} Nf6 {[%emt 0:00:12]} 5. Nc3 {[%emt 0:00:02]} Bg4 {[%emt 0:00:21] [#]} (5... Nc6 $11) 6. Nf3 {[%emt 0:00:25] B13: Caro-Kann: Exchange Variation and Panov-Botvinnik Attack.} (6. Qb3 $1 $16) 6... e6 {[%emt 0:00:17]} 7. Qb3 {[%emt 0:00:56]} (7. cxd5 {feels hotter.} Nxd5 8. Qa4+ Nd7 9. Ne5) 7... dxc4 {[%emt 0:04:10]} (7... Bxf3 $5 8. Qxb7 (8. gxf3 Nc6 $11) 8... Nbd7 $14) 8. Qxb7 {[%emt 0:00:41] The position is equal.} Bxf3 {[%emt 0:00:11]} (8... Nbd7 $11 {remains equal.}) 9. Qxf3 $16 {[%emt 0:00:10]} Nbd7 {[%emt 0:01:48]} 10. Bxc4 {[%emt 0:00:03] [#] White is more active.} Nb6 $146 {[%emt 0:00:27]} (10... Be7 $16 {was necessary.}) ({Predecessor:} 10... Be7 11. O-O O-O 12. Rd1 Nb6 13. Bb3 Nfd5 14. Ne4 f5 15. Nc5 Qc8 16. Qe2 Re8 17. Qxe6+ {1-0 (39) Rako,I (2063)-Petrecz,G (1764) Hungary 2013}) 11. Bb5+ $18 {[%emt 0:00:20]} Nbd7 {[%emt 0:00:25]} 12. Bg5 {[%emt 0:00:11]} Be7 {[%emt 0:00:07]} 13. Bxf6 {[%emt 0:01:06]} Bxf6 {[%emt 0:00:20]} 14. Bxd7+ {[%emt 0:00:15]} Kxd7 {[%emt 0:00:03]} 15. O-O {[%emt 0:00:08]} ({Not} 15. Qb7+ Qc7 16. Qf3 Rhd8 $14) 15... Ke7 {[%emt 0:00:43]} 16. Rfe1 {[%emt 0:01:05] Hoping for d5.} Qb6 $2 {[%emt 0:00:36] Loses the game.} (16... Re8 $16 17. d5 Kf8) 17. d5 $2 {[%emt 0:00:11]} (17. Nd5+ Kf8 18. Nxb6) 17... Qxb2 $2 {[%emt 0:00:42]} (17... Rad8 18. dxe6 fxe6 19. Nd5+ Rxd5) 18. d6+ {[%emt 0:00:52]} Kxd6 {[%emt 0:03:17]} 19. Rad1+ {[%emt 0:00:04]} ({Weaker is} 19. Rac1 Rhd8 $18) 19... Kc7 {[%emt 0:01:14]} 20. Na4 {[%emt 0:00:02]} Qb4 {[%emt 0:04:25]} 21. Rc1+ {[%emt 0:00:13]} Kd7 {[%emt 0:01:29]} 22. Red1+ {[%emt 0:01:03]} Bd4 {[%emt 0:04:41]} 23. Rxd4+ {[%emt 0:01:38]} Ke7 {[%emt 0:03:02] Weighted Error Value: White=0.58/Black=0.97} 1-0

[Event "Slovakia Open 2022"]
[Site "Bratislava"]
[Date "2022.10.02"]
[Round "9.35"]
[White "Merva Max"]
[Black "Kostic, Ivan"]
[Result "0-1"]
[ECO "C41"]
[WhiteElo "1000"]
[BlackElo "1716"]
[Annotator "NA RC COMBH"]
[PlyCount "48"]
[EventDate "2022.09.30"]
[EventCountry "SVK"]
[SourceTitle "playchess.com"]
[Source "ChessBase"]
[SourceQuality "1"]
[TimeControl "2700+10"]

1. e4 {[%emt 0:00:09]} e5 {[%emt 0:00:02]} 2. Nf3 {[%emt 0:00:21]} d6 {[%emt 0:00:03]} 3. Nc3 {[%emt 0:00:18]} Nf6 {[%emt 0:00:06]} 4. d4 {[%emt 0:00:20]} exd4 {[%emt 0:00:04]} 5. Nxd4 {[%emt 0:00:13]} h6 {[%emt 0:00:09]} 6. Bd3 {[%emt 0:00:38]} g6 {[%emt 0:00:27]} 7. Nf3 {[%emt 0:00:15]} Nc6 {[%emt 0:00:31]} 8. Be3 {[%emt 0:00:13]} Bg7 {[%emt 0:00:04]} 9. O-O {[%emt 0:00:21]} O-O {[%emt 0:00:10]} 10. Bb5 {[%emt 0:00:28]} Bd7 {[%emt 0:00:24]} 11. Qd3 {[%emt 0:00:52]} a6 {[%emt 0:00:15]} 12. Ba4 {[%emt 0:00:13]} b5 {[%emt 0:00:18]} 13. Bb3 {[%emt 0:00:21]} Nb4 {[%emt 0:00:30]} 14. Qe2 {[%emt 0:00:37]} Qe8 {[%emt 0:00:42]} 15. Bd4 {[%emt 0:00:37]} Nc6 {[%emt 0:00:31]} 16. Qd3 {[%emt 0:00:26]} Nxd4 {[%emt 0:00:23]} 17. Qxd4 {[%emt 0:00:30]} Bc6 {[%emt 0:00:23]} 18. Qe3 {[%emt 0:00:33]} Nxe4 {[%emt 0:00:23]} 19. Nxe4 {[%emt 0:00:08]} Bxe4 {[%emt 0:00:24]} 20. Nd2 {[%emt 0:00:36]} Bb7 {[%emt 0:00:14]} 21. Be6 {[%emt 0:00:33]} fxe6 {[%emt 0:00:39]} 22. Rfe1 {[%emt 0:00:33]} e5 {[%emt 0:00:06]} 23. f4 {[%emt 0:00:27]} Qc6 {[%emt 0:00:12]} 24. Qc3 {[%emt 0:00:27]} Qxg2# {[%emt 0:00:20]} 0-1